bitfinex-derivatives/quotes_ETHF0:USTF0_20250902
["timestamp","ask_amount","ask_price","bid_price","bid_amount"]
[1756836597318,5.25395444,4289.6,4289.5,1.10714069]
[1756836598319,4.01454302,4289.6,4289.5,1.10714069]
[1756836598522,4.01454302,4289.6,4289.5,1.23424069]
[1756836599228,4.01454302,4289.6,4289.5,1.10714069]
[1756836599419,3.76654302,4289.6,4289.5,1.23424069]
[1756836599726,4.01354302,4289.6,4289.5,1.23424069]
[1756836600225,4.01354302,4289.6,4289.5,1.10714069]
[1756836600724,4.01354302,4289.6,4289.5,0.78574069]
[1756836600922,0.52414,4289.5,4288.0,0.1271]
[1756836601122,3.2078,4288.2,4288.0,0.1271]
[1756836601320,0.247,4288.1,4288.0,0.1271]
[1756836601715,3.2078,4288.2,4288.0,4.36031]
[1756836602020,0.248,4288.9,4288.5,0.1271]
[1756836602220,0.248,4288.8,4288.0,3.3349]
[1756836602420,3.2078,4288.5,4288.0,3.3349]
[1756836602622,0.80816694,4288.4,4288.0,0.1271]
[1756836602828,0.56016694,4288.3,4287.6,0.3214]
[1756836603123,3.2078,4287.9,4287.6,0.3214]
[1756836603421,3.2078,4288.6,4287.6,0.3214]
[1756836603620,0.80837554,4288.5,4287.7,0.3214]
[1756836603825,0.80837554,4288.4,4288.0,0.1271]
[1756836604029,3.2078,4289.2,4288.6,0.3214]
[1756836604324,3.2078,4288.7,4288.1,0.3214]
[1756836604530,0.80888585,4288.6,4288.0,0.1271]
[1756836604724,0.56088585,4288.5,4288.1,0.3214]
[1756836605024,0.80888585,4288.4,4288.0,0.1271]
[1756836605224,0.56096388,4288.3,4288.0,0.1271]
[1756836605522,0.248,4288.2,4288.1,0.3214]
[1756836606027,1.0999504,4288.2,4288.1,0.3214]
[1756836606427,0.8089504,4288.2,4288.1,0.3214]
[1756836606630,0.5609504,4288.2,4288.1,0.3214]
[1756836606925,0.248,4288.2,4288.1,0.3214]
[1756836607121,0.539,4288.2,4288.1,0.3214]
[1756836607314,0.539,4288.2,4287.5,3.3349]
[1756836607519,3.2078,4288.2,4287.6,0.3214]
[1756836607719,0.248,4288.1,4288.0,0.1271]
[1756836608224,0.248,4288.1,4288.0,0.4485]
[1756836608434,0.248,4288.1,4288.0,0.3214]
[1756836609924,0.247,4288.6,4288.1,0.3214]
[1756836610322,3.2078,4288.7,4288.6,0.3214]
[1756836610522,3.4558,4288.7,4288.6,0.3214]
[1756836610720,3.2078,4289.2,4288.6,4.55457]
[1756836610923,3.2078,4289.7,4289.6,0.3214]
[1756836611128,4.33301144,4289.7,4288.6,0.3024]
[1756836611428,3.2078,4289.2,4288.6,0.3024]
[1756836611825,3.2078,4289.7,4289.1,0.3024]
[1756836612023,0.248,4289.6,4289.5,0.3024]
[1756836612419,0.248,4289.6,4288.5,0.1271]
[1756836612724,0.3166,4288.5,4287.7,0.3024]
[1756836612926,3.2078,4287.8,4287.0,0.1215]
[1756836613127,0.248,4287.7,4287.1,0.3024]
[1756836613531,3.2078,4287.8,4287.1,0.3024]
[1756836613729,0.248,4287.6,4287.0,0.1215]
[1756836613919,0.248,4287.6,4287.1,0.3024]
[1756836614120,3.5244,4287.3,4286.6,0.3024]
[1756836614334,0.248,4287.2,4286.6,0.3024]
[1756836614720,0.248,4287.1,4286.6,0.3024]
[1756836614919,0.248,4287.1,4287.0,0.3024]
[1756836615127,3.2078,4287.3,4287.0,0.4239]
[1756836615420,3.2078,4287.3,4287.1,0.3024]
[1756836615827,1.2422071,4289.0,4287.0,0.1215]
[1756836615828,3.2078,4288.1,4287.0,0.1215]
[1756836616031,0.248,4287.8,4287.1,0.3024]
[1756836616532,0.248,4287.8,4287.6,0.3024]
[1756836617125,0.248,4287.8,4287.5,0.1215]
[1756836617428,0.248,4287.8,4287.6,0.3024]
[1756836617732,3.4558,4288.1,4288.0,0.4239]
[1756836617932,0.248,4288.1,4288.0,0.4239]
[1756836618827,0.248,4288.5,4288.1,0.3024]
[1756836619132,30.79,4289.3,4288.6,0.3024]
[1756836619133,0.248,4288.9,4288.6,0.3024]
[1756836619629,3.2078,4289.2,4289.0,0.1215]
[1756836619829,0.248,4289.4,4289.1,0.3024]
[1756836620020,0.248,4289.5,4289.1,0.3024]
[1756836620534,0.248,4289.5,4289.0,0.1215]
[1756836620832,0.248,4289.6,4289.1,0.3024]
[1756836622032,0.248,4289.6,4289.5,0.4239]
[1756836622626,3.2078,4289.7,4289.6,0.3024]
[1756836623229,3.2078,4289.7,4289.1,0.3024]
[1756836624537,3.2078,4290.3,4289.6,0.3024]
[1756836625131,3.5244,4290.3,4289.6,0.3024]
[1756836625537,3.2078,4290.3,4289.6,0.3024]
[1756836628235,0.3166,4291.3,4290.1,0.3024]
[1756836628436,3.2078,4292.1,4291.0,3.2078]
[1756836628633,0.57552149,4292.0,4291.1,0.3024]
[1756836628936,3.2078,4291.6,4291.0,0.3024]
[1756836629136,0.3166,4291.3,4290.4,0.3024]
[1756836629336,0.248,4291.2,4290.4,0.3024]
[1756836630228,3.2078,4290.7,4290.0,3.3293]
[1756836630437,0.3166,4290.6,4289.9,0.3024]
[1756836630632,0.3166,4290.6,4289.6,0.3024]
[1756836630934,0.247,4290.5,4289.6,0.3024]
[1756836631443,3.2078,4290.2,4289.6,0.3024]
[1756836633036,3.5244,4290.2,4289.6,0.3024]
[1756836634040,3.2078,4290.2,4289.6,0.3024]
[1756836634348,0.247,4290.1,4289.3,0.3024]
[1756836634543,0.5636,4290.1,4289.3,0.3024]
[1756836634940,3.2078,4289.7,4289.3,0.3024]
[1756836635143,0.3166,4289.6,4289.3,0.3024]
[1756836635449,0.3166,4289.6,4288.6,0.3024]
[1756836635645,3.2078,4289.2,4288.6,0.3024]
[1756836635849,3.7714,4289.2,4288.6,0.3024]
[1756836636450,3.7714,4289.2,4288.5,3.2078]
[1756836636652,3.2078,4289.2,4288.1,0.3024]
[1756836636845,3.2078,4289.2,4288.6,0.3024]
[1756836638050,0.5636,4289.5,4288.6,0.3024]
[1756836638464,0.247,4289.5,4288.6,0.3024]
[1756836638854,3.2078,4289.9,4289.0,3.3293]
[1756836639165,3.2078,4289.9,4289.1,0.3024]
[1756836639363,0.3166,4290.3,4289.5,3.3293]
[1756836639564,3.2078,4290.5,4289.6,0.3024]
[1756836640256,0.247,4290.6,4289.6,0.3024]
[1756836640460,3.5244,4290.5,4289.6,0.3024]
[1756836641259,3.5244,4290.5,4289.8,0.309]
[1756836641456,34.2914,4291.0,4289.8,0.309]
[1756836641669,0.247,4290.7,4289.8,0.309]
[1756836642058,0.247,4290.7,4289.7,40.8]
[1756836642059,3.2078,4290.5,4289.7,40.8]
[1756836642262,3.2078,4290.5,4289.5,3.2078]
[1756836642263,0.3026,4290.4,4289.5,3.2078]
[1756836642463,0.247,4290.3,4289.5,3.2078]
[1756836642663,0.247,4290.3,4289.6,0.309]
[1756836642960,0.247,4290.3,4289.7,0.309]
[1756836643161,0.247,4290.3,4289.9,0.309]
[1756836643467,0.247,4290.9,4290.1,0.309]
[1756836643760,0.247,4290.9,4290.2,0.309]
[1756836643959,0.247,4290.9,4290.0,3.3286]
[1756836643960,0.3026,4291.6,4290.6,0.309]
[1756836644164,0.3026,4291.6,4291.0,3.5168]
[1756836644359,0.3026,4291.6,4290.5,0.556]
[1756836644360,3.2078,4291.5,4290.5,0.556]
[1756836644565,0.3026,4291.4,4290.5,0.556]
[1756836644764,0.3026,4291.4,4290.5,0.309]
[1756836646162,3.2078,4292.1,4291.0,0.4298]
[1756836646368,3.2078,4292.1,4291.2,0.309]
[1756836646569,3.5104,4292.1,4291.2,0.556]
[1756836647063,3.5104,4292.1,4291.3,0.309]
[1756836647268,0.1074,4293.5,4291.2,0.247]
[1756836647269,3.5104,4292.7,4291.5,0.4298]
[1756836647461,0.247,4292.6,4291.6,0.309]
[1756836648164,3.2078,4292.2,4291.6,0.309]
[1756836648773,0.247,4292.6,4291.6,0.309]
[1756836649068,0.3026,4292.5,4291.6,0.309]
[1756836651171,3.2078,4292.7,4292.2,0.309]
[1756836651470,3.2078,4292.7,4292.1,3.2078]
[1756836651972,3.2078,4292.7,4292.2,0.309]
[1756836652174,3.2078,4292.7,4292.1,3.2078]
[1756836652668,0.3026,4292.6,4291.7,0.309]
[1756836652967,0.3026,4292.4,4291.7,0.309]
[1756836653564,0.3026,4292.4,4291.4,3.2078]
[1756836653565,0.246,4292.5,4291.4,3.2078]
[1756836653868,0.246,4292.5,4290.7,0.309]
[1756836653869,0.3026,4291.6,4290.7,0.309]
[1756836654064,0.246,4291.5,4290.7,0.309]
[1756836655176,0.5486,4291.5,4290.7,0.309]
[1756836656875,0.246,4291.5,4290.7,0.309]
[1756836657775,3.4538,4291.7,4290.7,0.309]
[1756836658370,3.7564,4291.7,4290.7,0.309]
[1756836661565,0.246,4291.6,4290.7,0.309]
[1756836661771,0.3026,4291.5,4290.7,0.309]
[1756836662475,3.2078,4291.2,4290.7,0.309]
[1756836662776,0.3026,4291.1,4289.8,0.309]
[1756836662976,0.3026,4291.1,4288.1,1.04931]
[1756836662977,0.3026,4289.9,4289.1,3.5168]
[1756836663274,0.5486,4289.9,4289.1,3.5168]
[1756836663471,0.5486,4289.9,4289.1,3.2078]
[1756836663670,3.5104,4290.0,4289.2,0.309]
[1756836665367,3.2078,4290.0,4289.1,3.2078]
[1756836665567,0.3026,4289.9,4289.1,3.5168]
[1756836667276,0.246,4289.8,4289.2,0.309]
[1756836670473,3.2078,4288.0,4287.5,0.1208]
[1756836670674,3.2078,4288.0,4287.6,0.309]
[1756836670876,0.246,4288.6,4287.7,3.2078]
[1756836671070,0.246,4288.9,4287.8,0.309]
[1756836671376,0.246,4289.1,4287.9,0.3112]
[1756836671581,0.246,4289.1,4288.1,0.3112]
[1756836673482,3.2078,4288.9,4288.1,0.3112]
[1756836674583,3.5048,4288.9,4288.1,0.5572]
[1756836674985,3.5048,4288.9,4288.2,0.3112]
[1756836676376,3.5048,4288.9,4287.7,3.2078]
[1756836676578,0.297,4288.8,4287.8,0.3112]
[1756836677784,0.246,4288.8,4287.8,0.3112]
[1756836678584,3.2078,4288.9,4288.0,0.432]
[1756836678786,3.2078,4288.9,4288.0,0.1208]
[1756836678986,3.2078,4288.9,4288.5,0.1208]
[1756836679284,30.783,4291.3,4289.0,0.1208]
[1756836679285,3.2078,4290.1,4289.0,0.1208]
[1756836679487,3.2078,4290.1,4289.1,0.3112]
[1756836679676,3.2078,4290.1,4289.0,0.1208]
[1756836679677,3.2078,4290.1,4289.3,3.2078]
[1756836679877,3.2078,4290.1,4289.4,0.3112]
[1756836680280,3.2078,4290.1,4289.3,3.2078]
[1756836680281,0.297,4290.9,4289.6,0.3112]
[1756836680481,0.543,4290.9,4289.6,0.3112]
[1756836680687,0.297,4290.9,4290.1,0.3112]
[1756836680877,3.2078,4291.1,4290.1,0.3112]
[1756836681281,31.029,4291.3,4290.1,0.3112]
[1756836681282,3.2078,4290.6,4290.1,0.3112]
[1756836681479,3.2078,4290.6,4289.5,0.3112]
[1756836681480,0.297,4290.5,4289.5,0.3112]
[1756836681683,3.5048,4290.1,4289.5,0.3112]
[1756836681882,0.246,4290.0,4289.1,0.3112]
[1756836682685,0.297,4289.9,4289.1,0.3112]
[1756836683085,0.297,4289.9,4288.8,3.2078]
[1756836683086,0.297,4289.5,4288.8,3.2078]
[1756836683289,0.297,4289.4,4288.6,0.3112]
[1756836683488,0.297,4289.0,4288.2,3.2078]
[1756836684085,0.543,4289.0,4288.2,3.2078]
[1756836684480,0.543,4289.0,4288.3,0.3112]
[1756836684676,3.2078,4289.1,4288.3,0.3112]
[1756836684884,0.246,4289.1,4288.3,0.3112]
[1756836685683,3.4538,4289.1,4288.3,0.3112]
[1756836687200,0.246,4289.1,4288.4,0.3112]
[1756836687390,0.246,4289.1,4288.6,0.3112]
[1756836687792,0.246,4289.1,4288.5,0.1208]
[1756836687987,0.246,4289.1,4288.6,0.3112]
[1756836688293,3.5048,4289.6,4288.6,0.3112]
[1756836688294,0.246,4289.3,4288.6,0.3112]
[1756836688889,3.5048,4289.6,4288.6,0.3112]
[1756836688890,0.246,4289.5,4288.6,0.3112]
[1756836690292,1.23725043,4291.1,4288.5,0.1208]
[1756836690293,3.2078,4290.1,4288.9,0.3112]
[1756836690490,3.2078,4290.1,4289.5,0.432]
[1756836690793,3.2078,4290.1,4289.6,0.3112]
[1756836691393,0.543,4290.5,4289.6,0.3112]
[1756836691788,0.246,4290.5,4289.9,3.2078]
[1756836691989,0.246,4290.5,4290.0,0.1208]
[1756836692189,0.246,4290.5,4290.1,0.3112]
[1756836692789,0.543,4291.1,4290.1,0.3112]
[1756836692994,3.2078,4290.8,4290.1,0.3112]
[1756836694094,30.783,4291.3,4290.1,0.3112]
[1756836694291,3.2078,4291.4,4290.5,0.3112]
[1756836694591,0.297,4291.3,4290.5,0.3112]
[1756836696598,0.297,4292.0,4290.6,0.3112]
[1756836696793,0.543,4292.0,4290.6,0.3112]
[1756836696997,0.543,4292.0,4291.0,3.2078]
[1756836697292,0.297,4292.0,4291.1,0.3112]
[1756836697495,0.543,4292.0,4291.1,0.3112]
[1756836699295,3.2078,4292.1,4291.0,3.3286]
[1756836699491,0.297,4292.6,4291.7,0.3112]
[1756836701196,3.4538,4292.7,4291.7,0.3112]
[1756836702394,0.2929,4292.6,4291.7,0.3112]
[1756836706205,0.2929,4292.6,4291.5,0.1211]
[1756836706206,0.2929,4292.1,4291.2,0.3128]
[1756836707096,0.2929,4292.6,4291.2,0.3128]
[1756836707497,3.2078,4292.7,4291.7,0.3128]
[1756836708501,0.2929,4292.6,4291.7,0.3128]
[1756836710002,3.2078,4292.7,4291.7,0.3128]
[1756836710503,0.2929,4292.6,4291.7,0.3128]
[1756836711294,0.23298001,4292.5,4291.6,3.2078]
[1756836711500,0.2929,4292.0,4291.6,3.2078]
[1756836711697,0.246,4291.9,4291.6,3.2078]
[1756836712495,0.2929,4291.8,4291.6,3.2078]
[1756836713095,0.246,4291.9,4291.6,3.2078]
[1756836713402,0.246,4291.9,4291.7,0.3128]
[1756836713696,0.246,4291.9,4291.6,3.2078]
[1756836714299,0.246,4291.9,4291.6,3.5206]
[1756836714500,0.246,4291.9,4290.9,0.3128]
[1756836714501,0.2929,4291.8,4290.9,0.3128]
[1756836714802,3.2078,4291.4,4290.6,0.3128]
[1756836714992,0.2929,4291.3,4290.6,0.3128]
[1756836715897,0.2929,4291.3,4290.1,0.246]
[1756836715898,0.2929,4290.8,4290.1,0.3128]
[1756836720306,3.2078,4290.2,4289.6,0.3128]
[1756836720510,3.4538,4290.2,4289.6,0.3128]
[1756836720806,0.246,4290.2,4289.6,0.3128]
[1756836721506,3.2078,4290.7,4290.0,0.4339]
[1756836721705,3.2078,4290.7,4290.1,0.3128]
[1756836724810,3.2078,4290.7,4290.6,0.3128]
[1756836725306,0.246,4291.1,4290.6,0.3128]
[1756836726006,3.2078,4291.6,4290.6,0.3128]
[1756836726214,3.4538,4291.6,4290.6,0.47904]
[1756836726404,3.4538,4291.6,4290.7,0.3128]
[1756836726804,3.4538,4291.6,4290.7,0.246]
[1756836727010,3.4538,4291.6,4290.8,40.8]
[1756836727214,3.4538,4291.6,4290.9,0.3128]
[1756836727505,3.4538,4291.6,4291.1,0.3128]
[1756836727914,3.4538,4291.6,4291.0,0.1211]
[1756836728209,3.4538,4291.6,4291.1,0.3128]
[1756836728617,3.4538,4291.6,4290.9,3.2078]
[1756836728813,0.2929,4291.5,4290.9,3.2078]
[1756836729112,3.68683,4291.6,4290.9,3.2078]
[1756836729313,0.2929,4291.5,4290.5,0.3128]
[1756836730112,3.2078,4291.1,4290.5,0.3128]
[1756836730312,3.7467,4291.1,4290.5,0.3128]
[1756836732119,0.3055,4291.0,4290.2,3.5073]
[1756836733709,0.246,4291.1,4290.2,0.2995]
[1756836733922,0.3055,4290.5,4289.7,0.2995]
[1756836734121,0.041,4290.4,4289.7,0.2995]
[1756836734521,0.3055,4290.3,4289.7,0.2995]
[1756836734714,0.3055,4290.3,4288.5,0.1211]
[1756836734715,0.3055,4289.7,4289.2,0.2995]
[1756836734914,3.2078,4289.8,4289.2,0.2995]
[1756836734915,0.246,4289.6,4289.2,0.2995]
[1756836735115,0.3055,4289.5,4289.2,0.2995]
[1756836735318,0.246,4289.6,4289.2,0.2995]
[1756836735515,0.246,4289.6,4289.1,3.2078]
[1756836736215,0.3055,4289.5,4289.1,3.2078]
[1756836736418,0.246,4289.6,4289.1,3.2078]
[1756836736616,0.3055,4289.5,4289.1,3.2078]
[1756836737318,0.3055,4289.5,4289.2,0.2995]
[1756836737519,0.246,4289.6,4289.2,0.2995]
[1756836737720,0.3055,4289.5,4289.2,0.2995]
[1756836738221,0.3055,4289.5,4288.6,0.2995]
[1756836738821,3.2078,4289.8,4288.6,0.2995]
[1756836739020,0.246,4289.7,4288.6,0.2995]
[1756836739725,3.2078,4289.8,4289.5,0.1188]
[1756836739910,3.2078,4289.8,4289.6,0.2995]
[1756836740119,3.5133,4290.6,4289.6,0.2995]
[1756836740323,3.7593,4290.6,4289.6,0.2995]
[1756836740622,3.7593,4290.6,4289.2,0.246]
[1756836740623,3.4538,4290.6,4289.2,0.246]
[1756836740823,3.4538,4290.6,4289.3,0.2995]
[1756836741024,0.3055,4290.5,4289.3,0.2995]
[1756836742014,3.2078,4290.1,4289.3,0.2995]
[1756836742213,0.3055,4290.0,4289.3,0.2995]
[1756836743828,3.4538,4290.1,4289.3,0.2995]
[1756836745731,0.3055,4290.0,4289.3,0.2995]
[1756836746133,3.2078,4290.1,4289.3,0.2995]
[1756836746336,3.2078,4290.1,4289.5,0.1188]
[1756836746634,3.2078,4290.6,4290.5,0.4183]
[1756836747731,3.2078,4290.6,4290.5,0.2995]
[1756836747929,3.5133,4290.6,4290.2,0.2995]
[1756836748233,3.4538,4290.6,4290.0,3.2078]
[1756836748734,3.2078,4290.6,4290.0,3.3266]
[1756836749036,3.5133,4290.6,4290.0,3.5073]
[1756836749237,3.5133,4290.6,4290.1,0.2995]
[1756836749438,3.5133,4290.6,4290.0,3.2078]
[1756836749632,3.5133,4290.6,4290.1,0.2995]
[1756836749826,3.5133,4290.6,4290.0,3.3266]
[1756836750029,3.5133,4290.6,4290.1,0.2995]
[1756836750229,3.5133,4290.6,4290.0,3.3266]
[1756836750433,3.5133,4290.6,4290.1,0.2995]
[1756836750739,3.5133,4290.6,4289.6,0.2995]
[1756836750740,0.3055,4290.5,4289.6,0.2995]
[1756836751035,3.2078,4290.0,4289.6,0.2995]
[1756836751236,0.3055,4289.8,4288.8,0.2995]
[1756836751439,3.2078,4289.4,4288.5,3.3266]
[1756836751632,0.245,4289.3,4288.6,0.2995]
[1756836752838,3.2078,4288.8,4288.2,0.2995]
[1756836753039,3.2078,4288.8,4288.3,0.2995]
[1756836753336,3.5133,4288.8,4288.2,0.2995]
[1756836754541,0.3055,4288.2,4287.6,0.2995]
[1756836754746,0.245,4288.1,4287.3,3.2078]
[1756836755044,0.245,4288.1,4287.4,0.2995]
[1756836755343,0.5505,4288.1,4287.4,0.2995]
[1756836755943,0.245,4288.1,4287.6,0.2995]
[1756836756642,0.245,4288.1,4287.5,0.1188]
[1756836756844,0.245,4288.1,4287.6,0.2995]
[1756836757043,0.245,4288.1,4287.5,0.4183]
[1756836757244,0.5505,4288.1,4287.5,0.2995]
[1756836757639,3.4528,4288.3,4287.5,0.4183]
[1756836757840,3.4528,4288.3,4287.5,0.2995]
[1756836758037,0.3055,4288.2,4287.5,0.2995]
[1756836760639,0.23322,4288.2,4287.1,0.2995]
[1756836760945,3.4528,4288.3,4287.1,0.2995]
[1756836760946,3.5133,4287.7,4287.1,0.2995]
[1756836761146,0.245,4287.6,4286.9,0.3081]
[1756836761643,0.245,4287.6,4287.1,0.3081]
[1756836761843,3.2078,4288.2,4287.1,0.3081]
[1756836762043,3.4528,4288.7,4287.8,0.3081]
[1756836762843,0.2976,4288.6,4287.8,0.3081]
[1756836763044,3.4528,4288.7,4287.8,0.3081]
[1756836763238,3.4528,4288.7,4288.0,0.4333]
[1756836763437,3.2078,4288.7,4288.0,0.1252]
[1756836763641,3.2078,4288.7,4288.1,0.3081]
[1756836763844,3.5054,4289.2,4288.2,3.2078]
[1756836764151,0.193,4289.1,4288.3,0.3081]
[1756836764945,0.2976,4289.0,4288.3,0.3081]
[1756836768453,3.2078,4289.2,4288.3,0.3081]
[1756836768454,0.245,4289.1,4288.3,0.3081]
[1756836769348,3.2078,4289.9,4289.1,0.3081]
[1756836769545,0.5426,4290.0,4289.1,0.3081]
[1756836769947,0.2976,4289.8,4289.1,0.3081]
[1756836770450,3.2078,4289.7,4288.3,0.245]
[1756836770653,0.2976,4289.6,4288.4,0.3081]
[1756836770953,3.2078,4289.0,4288.4,0.3081]
[1756836771156,0.2976,4288.8,4288.4,0.3081]
[1756836771545,3.2078,4288.5,4287.9,0.3081]
[1756836771845,0.2976,4288.3,4287.6,3.5159]
[1756836772051,0.245,4288.4,4287.6,3.5159]
[1756836772052,0.2976,4288.2,4287.6,3.5159]
[1756836772752,0.245,4288.4,4287.6,3.2078]
[1756836772941,0.2976,4288.2,4287.6,3.2078]
[1756836773355,0.2976,4288.2,4287.7,0.3081]
[1756836773546,0.245,4288.4,4287.7,0.3081]
[1756836773951,0.2976,4288.3,4287.7,0.3081]
[1756836774250,0.245,4288.2,4287.7,0.3081]
[1756836774754,0.245,4288.1,4287.7,0.3081]
[1756836775156,0.245,4288.1,4287.6,3.2078]
[1756836775359,3.2078,4288.5,4287.7,0.3081]
[1756836775553,0.245,4288.4,4287.7,0.3081]
[1756836775757,3.5054,4288.0,4287.2,0.3081]
[1756836776258,3.6495,4288.0,4287.9,0.1953]
[1756836776451,3.6495,4288.0,4287.9,0.5034]
[1756836776751,4.1427,4288.0,4287.2,0.3081]
[1756836776955,4.1427,4288.0,4287.3,0.3081]
[1756836778557,0.3923,4287.4,4286.7,0.3081]
[1756836778752,0.6093,4287.4,4286.7,0.3081]
[1756836778958,0.2976,4287.3,4286.7,0.3081]
[1756836779358,0.53086,4287.3,4286.7,0.3081]
[1756836779558,0.2976,4287.3,4286.7,0.3081]
[1756836780556,0.2976,4287.1,4286.6,3.2078]
[1756836780757,0.245,4287.2,4286.6,3.2078]
[1756836781055,3.2078,4287.4,4286.6,3.2078]
[1756836781253,3.2078,4287.4,4287.3,0.3936]
[1756836781451,3.2078,4287.4,4287.3,0.7017]
[1756836782056,3.4045,4287.4,4287.3,0.7017]
[1756836783257,0.3923,4288.0,4287.9,0.5034]
[1756836783462,0.6373,4288.0,4287.9,0.5034]
[1756836784151,3.2078,4288.6,4288.0,0.4333]
[1756836784466,0.1967,4288.2,4288.1,0.5034]
[1756836784664,0.3923,4288.2,4288.1,0.3081]
[1756836784864,0.6899,4288.2,4288.1,0.3081]
[1756836785063,0.6899,4288.2,4288.1,0.5034]
[1756836785259,3.2078,4288.6,4288.1,0.3936]
[1756836785562,0.1967,4288.3,4288.2,0.1953]
[1756836785758,0.1967,4288.3,4288.2,0.5034]
[1756836786865,0.1967,4288.3,4288.2,0.7017]
[1756836787166,0.3923,4288.3,4288.2,0.7017]
[1756836787757,3.4045,4289.2,4289.1,0.1953]
[1756836787961,4.42294124,4289.2,4289.1,0.5034]
[1756836788159,4.1427,4289.2,4289.1,0.5034]
[1756836788364,4.72062072,4289.2,4289.1,0.5034]
[1756836788564,4.72062072,4289.2,4289.1,0.3081]
[1756836788764,3.4045,4289.2,4289.1,0.7017]
[1756836789062,4.1427,4289.2,4289.1,0.5034]
[1756836789261,4.1427,4289.2,4288.6,0.3081]
[1756836790468,4.1427,4289.2,4289.1,0.1953]
[1756836790761,3.8451,4289.2,4289.1,0.7017]
[1756836790959,3.6495,4289.2,4289.1,0.7017]
[1756836791154,3.8451,4289.2,4289.1,0.7017]
[1756836791358,4.1499,4289.2,4288.6,0.2929]
[1756836791573,3.6495,4289.2,4289.1,0.7021]
[1756836791859,3.4045,4289.2,4289.1,0.7021]
[1756836792070,0.245,4289.4,4289.1,0.7021]
[1756836792270,0.245,4289.5,4289.4,0.4092]
[1756836792562,3.4169,4290.0,4289.9,0.2081]
[1756836792762,3.6619,4290.0,4289.9,0.501]
[1756836793164,3.8681,4290.0,4289.9,0.501]
[1756836793562,3.6619,4290.0,4289.9,0.7021]
[1756836793763,3.4169,4290.5,4290.4,0.2081]
[1756836793962,3.4169,4290.5,4290.4,0.501]
[1756836794166,3.4169,4290.5,4290.4,0.7021]
[1756836794670,3.2078,4290.5,4290.4,0.7021]
[1756836794869,0.3048,4291.2,4290.5,0.2929]
[1756836794870,0.245,4290.7,4290.5,0.2929]
[1756836795069,0.245,4290.7,4290.6,0.7021]
[1756836795764,0.4541,4290.7,4290.6,0.7021]
[1756836795965,0.245,4290.7,4290.6,0.7021]
[1756836796165,0.4541,4290.7,4290.6,0.7021]
[1756836797173,0.245,4290.7,4290.6,0.7021]
[1756836797668,0.4541,4290.7,4290.6,0.7021]
[1756836798968,0.2091,4290.2,4290.1,3.2078]
[1756836799176,0.7201,4290.2,4290.1,3.7088]
[1756836799367,0.7201,4290.2,4290.1,0.501]
[1756836800165,3.2078,4290.5,4290.4,0.4092]
[1756836800369,3.2078,4290.5,4290.4,0.7021]
[1756836800672,3.4169,4290.5,4290.4,0.7021]
[1756836800968,3.9279,4290.5,4289.9,0.2929]
[1756836801376,3.9279,4290.5,4290.4,0.501]
[1756836801673,3.4169,4290.5,4290.4,0.7021]
[1756836801869,0.245,4290.6,4290.5,0.2929]
[1756836802264,0.245,4290.6,4290.5,0.7021]
[1756836802471,3.2078,4291.0,4290.6,0.2929]
[1756836802671,3.6619,4291.0,4290.9,0.7021]
[1756836802974,3.6619,4291.0,4290.1,0.2929]
[1756836802975,4.1729,4291.0,4290.1,0.2929]
[1756836804275,3.6231,4291.0,4290.9,0.7021]
[1756836804469,3.8681,4291.0,4290.9,0.7021]
[1756836805069,3.6231,4291.0,4290.9,0.7021]
[1756836805270,3.4169,4291.0,4290.9,0.7021]
[1756836805670,3.2078,4291.0,4290.9,0.7021]
[1756836805872,0.245,4291.1,4291.0,0.8228]
[1756836806065,0.245,4291.5,4291.1,0.2929]
[1756836806266,0.4541,4291.5,4291.4,0.7021]
[1756836806765,0.6603,4291.5,4291.4,0.501]
[1756836806971,0.9651,4291.5,4291.4,0.501]
[1756836808374,0.9651,4291.5,4290.6,0.2929]
[1756836808674,0.2091,4290.7,4290.6,0.7021]
[1756836808878,0.245,4291.5,4290.7,0.2929]
[1756836809069,0.3048,4291.4,4291.1,0.2929]
[1756836809264,0.6603,4291.5,4291.1,0.2929]
[1756836809265,0.7201,4291.2,4291.1,0.2929]
[1756836809466,0.245,4291.5,4291.2,0.2929]
[1756836809667,0.3048,4291.4,4290.6,0.2929]
[1756836809867,0.3048,4291.4,4290.7,0.2929]
[1756836810370,0.3048,4291.4,4290.7,0.7021]
[1756836810371,0.2091,4290.8,4290.7,0.7021]
[1756836810978,0.3048,4291.4,4290.8,0.2929]
[1756836811473,0.2091,4291.4,4291.3,0.501]
[1756836811670,0.2091,4291.4,4291.3,0.7021]
[1756836812379,30.791,4292.2,4291.3,0.4092]
[1756836812380,3.2078,4292.1,4291.3,0.4092]
[1756836812579,0.6603,4292.0,4291.9,0.501]
[1756836812783,0.9651,4292.0,4291.1,0.2929]
[1756836813673,0.9651,4292.0,4291.9,0.2081]
[1756836813871,0.9651,4292.0,4291.0,3.3285]
[1756836813872,0.9651,4292.0,4291.1,0.2929]
[1756836814578,0.9651,4292.0,4291.9,0.501]